[Event "Titled Tuesday Blitz April 26 Late 2022"]
[White "Moiseenko, Alexander"]
[Black "Tari, Aryan"]
[WhiteFideId "14102560"]
[BlackFideId "1510045"]
[WhiteElo "2577"]
[BlackElo "2567"]
[Result "0-1"]
[Round "08"]
[TimeControl "180+1"]
[Date "2022.04.26"]
[WhiteClock "0:00:01"]
[BlackClock "0:00:13"]

1. d4 {[%clk 0:03:00]}  Nf6 {[%clk 0:02:56]} 2. Bg5 {[%clk 0:03:00]}  d5 {[%clk 0:02:51]} 3. e3 {[%clk 0:03:00]}  Bf5 {[%clk 0:02:48]} 4. Bxf6 {[%clk 0:02:57]}  exf6 {[%clk 0:02:48]} 5. Bd3 {[%clk 0:02:55]}  Bxd3 {[%clk 0:02:48]} 6. Qxd3 {[%clk 0:02:54]}  c6 {[%clk 0:02:48]} 7. Nf3 {[%clk 0:02:47]}  Bd6 {[%clk 0:02:48]} 8. Nbd2 {[%clk 0:02:47]}  O-O {[%clk 0:02:48]} 9. O-O {[%clk 0:02:46]}  Re8 {[%clk 0:02:48]} 10. c4 {[%clk 0:02:46]}  dxc4 {[%clk 0:02:45]} 11. Nxc4 {[%clk 0:02:47]}  Bf8 {[%clk 0:02:45]} 12. Rab1 {[%clk 0:02:42]}  a5 {[%clk 0:02:44]} 13. Rfd1 {[%clk 0:02:36]}  Nd7 {[%clk 0:02:39]} 14. g3 {[%clk 0:02:26]}  a4 {[%clk 0:02:39]} 15. b4 {[%clk 0:02:20]}  axb3 {[%clk 0:02:38]} 16. axb3 {[%clk 0:02:20]}  b5 {[%clk 0:02:20]} 17. Ncd2 {[%clk 0:02:18]}  Nb6 {[%clk 0:02:20]} 18. Rdc1 {[%clk 0:02:02]}  Nd5 {[%clk 0:02:20]} 19. Ra1 {[%clk 0:01:38]}  Nb4 {[%clk 0:02:19]} 20. Qe2 {[%clk 0:01:25]}  Qd7 {[%clk 0:01:36]} 21. Qf1 {[%clk 0:00:58]}  Na2 {[%clk 0:01:13]} 22. Rc2 {[%clk 0:00:52]}  Nb4 {[%clk 0:01:13]} 23. Rcc1 {[%clk 0:00:51]}  Ra2 {[%clk 0:01:13]} 24. Rxa2 {[%clk 0:00:48]}  Nxa2 {[%clk 0:01:14]} 25. Ra1 {[%clk 0:00:46]}  Nc3 {[%clk 0:01:15]} 26. Qd3 {[%clk 0:00:38]}  b4 {[%clk 0:01:15]} 27. Nb1 {[%clk 0:00:30]}  Qd5 {[%clk 0:01:12]} 28. Nfd2 {[%clk 0:00:24]}  Nd1 {[%clk 0:01:05]} 29. Qe2 {[%clk 0:00:18]}  Nc3 {[%clk 0:01:02]} 30. Qd3 {[%clk 0:00:18]}  Nd1 {[%clk 0:00:56]} 31. Qe2 {[%clk 0:00:18]}  Qxd4 {[%clk 0:00:57]} 32. exd4 {[%clk 0:00:11]}  Rxe2 {[%clk 0:00:57]} 33. Kf1 {[%clk 0:00:06]}  Nc3 {[%clk 0:00:53]} 34. Nxc3 {[%clk 0:00:05]}  Rxd2 {[%clk 0:00:53]} 35. Ne2 {[%clk 0:00:04]}  Rb2 {[%clk 0:00:39]} 36. Rc1 {[%clk 0:00:04]}  Rxb3 {[%clk 0:00:39]} 37. Rxc6 {[%clk 0:00:04]}  Rb1+ {[%clk 0:00:37]} 38. Kg2 {[%clk 0:00:04]}  Rd1 {[%clk 0:00:38]} 39. Rc8 {[%clk 0:00:03]}  g6 {[%clk 0:00:36]} 40. Rb8 {[%clk 0:00:02]}  Kg7 {[%clk 0:00:36]} 41. Rb7 {[%clk 0:00:02]}  g5 {[%clk 0:00:27]} 42. h3 {[%clk 0:00:02]}  h5 {[%clk 0:00:27]} 43. g4 {[%clk 0:00:02]}  h4 {[%clk 0:00:27]} 44. Kf3 {[%clk 0:00:02]}  Rd3+ {[%clk 0:00:26]} 45. Kg2 {[%clk 0:00:02]}  Kg6 {[%clk 0:00:24]} 46. Rb6 {[%clk 0:00:02]}  Kg7 {[%clk 0:00:23]} 47. Rb7 {[%clk 0:00:02]}  Bd6 {[%clk 0:00:18]} 48. Rb6 {[%clk 0:00:02]}  Be7 {[%clk 0:00:16]} 49. Rb7 {[%clk 0:00:02]}  Bf8 {[%clk 0:00:16]} 50. Rb8 {[%clk 0:00:02]}  Rd1 {[%clk 0:00:13]} 51. Rb7 {[%clk 0:00:02]}  Rb1 {[%clk 0:00:13]} 52. Rb6 {[%clk 0:00:01]}  b3 {[%clk 0:00:13]} 53. Nc3 {[%clk 0:00:01]}  Rb2 {[%clk 0:00:13]} 0-1


[Site "https://www.chess.com"]

[Event "Titled Tuesday Blitz April 26 Late 2022"]
[White "Moraes, Nelson da Silva"]
[Black "Vlassov, Nikolai"]
[WhiteFideId "2140772"]
[BlackFideId "4103360"]
[WhiteElo "2123"]
[BlackElo "2407"]
[Result "0-1"]
[Round "08"]
[TimeControl "180+1"]
[Date "2022.04.26"]
[WhiteClock "0:01:36"]
[BlackClock "0:01:52"]

1. e4 {[%clk 0:03:00]}  Nc6 {[%clk 0:02:58]} 2. d4 {[%clk 0:03:00]}  d5 {[%clk 0:02:58]} 3. exd5 {[%clk 0:03:00]}  Qxd5 {[%clk 0:02:57]} 4. Nf3 {[%clk 0:03:01]}  Bg4 {[%clk 0:02:57]} 5. Be2 {[%clk 0:02:57]}  O-O-O {[%clk 0:02:56]} 6. Be3 {[%clk 0:02:53]}  Nh6 {[%clk 0:02:54]} 7. h3 {[%clk 0:02:52]}  Bxf3 {[%clk 0:02:44]} 8. Bxf3 {[%clk 0:02:51]}  Qa5+ {[%clk 0:02:44]} 9. Bd2 {[%clk 0:02:42]}  Qb6 {[%clk 0:02:41]} 10. Bxc6 {[%clk 0:02:41]}  Qxc6 {[%clk 0:02:39]} 11. Bxh6 {[%clk 0:02:40]}  Qxg2 {[%clk 0:02:34]} 12. Qg4+ {[%clk 0:02:40]}  Qxg4 {[%clk 0:02:34]} 13. hxg4 {[%clk 0:02:41]}  gxh6 {[%clk 0:02:34]} 14. c3 {[%clk 0:02:41]}  Bg7 {[%clk 0:02:27]} 15. Nd2 {[%clk 0:02:39]}  e5 {[%clk 0:02:26]} 16. dxe5 {[%clk 0:02:39]}  Bxe5 {[%clk 0:02:26]} 17. Nf3 {[%clk 0:02:37]}  Bf4 {[%clk 0:02:23]} 18. Nd4 {[%clk 0:02:27]}  Rhe8+ {[%clk 0:02:16]} 19. Kf1 {[%clk 0:02:27]}  c5 {[%clk 0:02:16]} 20. Nb3 {[%clk 0:02:27]}  b6 {[%clk 0:02:12]} 21. Rh3 {[%clk 0:02:23]}  Re4 {[%clk 0:02:05]} 22. a4 {[%clk 0:02:17]}  Bg5 {[%clk 0:02:02]} 23. f3 {[%clk 0:02:08]}  Rf4 {[%clk 0:02:00]} 24. a5 {[%clk 0:02:06]}  Kb7 {[%clk 0:01:58]} 25. axb6 {[%clk 0:02:05]}  axb6 {[%clk 0:01:58]} 26. Ke2 {[%clk 0:02:02]}  f5 {[%clk 0:01:55]} 27. gxf5 {[%clk 0:01:57]}  Rxf5 {[%clk 0:01:55]} 28. Rhh1 {[%clk 0:01:42]}  Re5+ {[%clk 0:01:54]} 29. Kf2 {[%clk 0:01:42]}  Be3+ {[%clk 0:01:53]} 30. Kg3 {[%clk 0:01:39]}  Rg8+ {[%clk 0:01:53]} 31. Kh4 {[%clk 0:01:36]}  Bf2+ {[%clk 0:01:52]} 0-1


[Site "https://www.chess.com"]

[Event "Titled Tuesday Blitz April 26 Late 2022"]
[White "Moral Garcia, Serafin"]
[Black "Sailer, Mike"]
[WhiteFideId "2201925"]
[BlackFideId "2012901"]
[WhiteElo "2228"]
[BlackElo "2109"]
[Result "0-1"]
[Round "08"]
[TimeControl "180+1"]
[Date "2022.04.26"]
[WhiteClock "0:01:03"]
[BlackClock "0:00:05"]

1. e4 {[%clk 0:03:00]}  d5 {[%clk 0:03:00]} 2. exd5 {[%clk 0:03:00]}  Qxd5 {[%clk 0:03:00]} 3. Nc3 {[%clk 0:03:00]}  Qd6 {[%clk 0:03:01]} 4. d4 {[%clk 0:03:01]}  Nf6 {[%clk 0:03:01]} 5. Nf3 {[%clk 0:03:01]}  c6 {[%clk 0:03:01]} 6. Ne5 {[%clk 0:03:01]}  Nbd7 {[%clk 0:03:00]} 7. Nc4 {[%clk 0:03:01]}  Qc7 {[%clk 0:03:01]} 8. Qf3 {[%clk 0:03:01]}  Nb6 {[%clk 0:03:01]} 9. Bf4 {[%clk 0:03:00]}  Qd8 {[%clk 0:03:02]} 10. O-O-O {[%clk 0:02:54]}  Bg4 {[%clk 0:02:53]} 11. Qg3 {[%clk 0:02:51]}  Bxd1 {[%clk 0:02:53]} 12. Nxd1 {[%clk 0:02:48]}  Nh5 {[%clk 0:02:50]} 13. Qg4 {[%clk 0:02:43]}  Nxf4 {[%clk 0:02:50]} 14. Qxf4 {[%clk 0:02:44]}  Nxc4 {[%clk 0:02:45]} 15. Bxc4 {[%clk 0:02:44]}  e6 {[%clk 0:02:46]} 16. Nc3 {[%clk 0:02:41]}  Be7 {[%clk 0:02:26]} 17. Kb1 {[%clk 0:02:42]}  O-O {[%clk 0:02:16]} 18. h4 {[%clk 0:02:42]}  b5 {[%clk 0:02:16]} 19. Bb3 {[%clk 0:02:41]}  a5 {[%clk 0:02:16]} 20. a3 {[%clk 0:02:38]}  b4 {[%clk 0:02:15]} 21. axb4 {[%clk 0:02:38]}  Bxb4 {[%clk 0:02:12]} 22. Ne4 {[%clk 0:02:29]}  a4 {[%clk 0:02:07]} 23. Bc4 {[%clk 0:02:25]}  a3 {[%clk 0:01:54]} 24. c3 {[%clk 0:02:24]}  axb2 {[%clk 0:01:47]} 25. Kxb2 {[%clk 0:02:23]}  Ba3+ {[%clk 0:01:36]} 26. Kc2 {[%clk 0:02:23]}  Qb8 {[%clk 0:01:28]} 27. Qg5 {[%clk 0:02:20]}  Qb2+ {[%clk 0:01:27]} 28. Kd3 {[%clk 0:02:20]}  c5 {[%clk 0:00:55]} 29. Nf6+ {[%clk 0:01:27]}  Kh8 {[%clk 0:00:54]} 30. Rh3 {[%clk 0:01:28]}  Qxf2 {[%clk 0:00:34]} 31. Rf3 {[%clk 0:01:23]}  Qe1 {[%clk 0:00:25]} 32. Rg3 {[%clk 0:01:15]}  Qf1+ {[%clk 0:00:18]} 33. Kc2 {[%clk 0:01:10]}  Qxf6 {[%clk 0:00:18]} 34. Qe3 {[%clk 0:01:10]}  cxd4 {[%clk 0:00:15]} 35. cxd4 {[%clk 0:01:11]}  Rfc8 {[%clk 0:00:09]} 36. Kd3 {[%clk 0:01:10]}  Rxc4 {[%clk 0:00:06]} 37. Kxc4 {[%clk 0:01:10]}  Bd6 {[%clk 0:00:06]} 38. Qe4 {[%clk 0:01:03]}  Rc8+ {[%clk 0:00:04]} 39. Kb5 {[%clk 0:01:03]}  Bxg3 {[%clk 0:00:04]} 40. Qb7 {[%clk 0:01:03]}  Rb8 {[%clk 0:00:05]} 0-1


[Site "https://www.chess.com"]

[Event "Titled Tuesday Blitz April 26 Late 2022"]
[White "Nakamura, Hikaru"]
[Black "Bortnyk, Olexandr"]
[WhiteFideId "2016192"]
[BlackFideId "14120828"]
[WhiteElo "2850"]
[BlackElo "2723"]
[Result "0-1"]
[Round "08"]
[TimeControl "180+1"]
[Date "2022.04.26"]
[WhiteClock "0:00:05"]
[BlackClock "0:00:04"]

1. Nf3 {[%clk 0:03:00]}  Nf6 {[%clk 0:02:58]} 2. c4 {[%clk 0:02:57]}  d6 {[%clk 0:02:57]} 3. d4 {[%clk 0:02:57]}  g6 {[%clk 0:02:57]} 4. Nc3 {[%clk 0:02:55]}  Bf5 {[%clk 0:02:57]} 5. g3 {[%clk 0:02:53]}  Bg7 {[%clk 0:02:57]} 6. Bg2 {[%clk 0:02:53]}  O-O {[%clk 0:02:57]} 7. O-O {[%clk 0:02:48]}  Ne4 {[%clk 0:02:57]} 8. Qb3 {[%clk 0:02:44]}  Nxc3 {[%clk 0:02:56]} 9. bxc3 {[%clk 0:02:44]}  Be4 {[%clk 0:02:56]} 10. Re1 {[%clk 0:02:43]}  b6 {[%clk 0:02:51]} 11. Bf1 {[%clk 0:02:42]}  Nc6 {[%clk 0:02:51]} 12. Nd2 {[%clk 0:02:41]}  Na5 {[%clk 0:02:51]} 13. Qd1 {[%clk 0:02:39]}  Bb7 {[%clk 0:02:50]} 14. e4 {[%clk 0:02:38]}  c5 {[%clk 0:02:51]} 15. Bb2 {[%clk 0:02:38]}  Qd7 {[%clk 0:02:47]} 16. d5 {[%clk 0:02:38]}  Rae8 {[%clk 0:02:38]} 17. Qc2 {[%clk 0:02:26]}  Ba6 {[%clk 0:02:37]} 18. Rad1 {[%clk 0:02:17]}  e5 {[%clk 0:02:31]} 19. Bd3 {[%clk 0:02:13]}  f5 {[%clk 0:02:29]} 20. exf5 {[%clk 0:02:05]}  gxf5 {[%clk 0:02:30]} 21. f3 {[%clk 0:02:06]}  Qf7 {[%clk 0:02:28]} 22. Kh1 {[%clk 0:02:03]}  Qh5 {[%clk 0:02:27]} 23. Rg1 {[%clk 0:01:54]}  e4 {[%clk 0:02:21]} 24. Be2 {[%clk 0:01:46]}  e3 {[%clk 0:02:11]} 25. Nb3 {[%clk 0:01:47]}  Nxc4 {[%clk 0:02:06]} 26. Bc1 {[%clk 0:01:43]}  Kh8 {[%clk 0:01:39]} 27. a4 {[%clk 0:01:31]}  f4 {[%clk 0:01:31]} 28. gxf4 {[%clk 0:01:19]}  Rxf4 {[%clk 0:01:32]} 29. Rg2 {[%clk 0:01:20]}  Qf5 {[%clk 0:00:53]} 30. Qa2 {[%clk 0:00:33]}  Bb7 {[%clk 0:00:54]} 31. Nxc5 {[%clk 0:00:28]}  bxc5 {[%clk 0:00:32]} 32. Bxc4 {[%clk 0:00:27]}  Rxc4 {[%clk 0:00:33]} 33. Qxc4 {[%clk 0:00:27]}  Qxf3 {[%clk 0:00:34]} 34. Qd3 {[%clk 0:00:20]}  c4 {[%clk 0:00:24]} 35. Qe2 {[%clk 0:00:10]}  Bxd5 {[%clk 0:00:25]} 36. Rxd5 {[%clk 0:00:11]}  Qxd5 {[%clk 0:00:25]} 37. Qg4 {[%clk 0:00:09]}  Bxc3 {[%clk 0:00:21]} 38. Bxe3 {[%clk 0:00:09]}  Rg8 {[%clk 0:00:13]} 39. Qxg8+ {[%clk 0:00:08]}  Qxg8 {[%clk 0:00:14]} 40. Rxg8+ {[%clk 0:00:09]}  Kxg8 {[%clk 0:00:14]} 41. Bxa7 {[%clk 0:00:10]}  Bd2 {[%clk 0:00:13]} 42. Bb6 {[%clk 0:00:08]}  c3 {[%clk 0:00:12]} 43. Ba5 {[%clk 0:00:08]}  d5 {[%clk 0:00:13]} 44. Bb4 {[%clk 0:00:07]}  Be1 {[%clk 0:00:07]} 45. Ba3 {[%clk 0:00:07]}  c2 {[%clk 0:00:05]} 46. Kg2 {[%clk 0:00:05]}  Bd2 {[%clk 0:00:02]} 47. a5 {[%clk 0:00:06]}  Bxa5 {[%clk 0:00:02]} 48. Bc1 {[%clk 0:00:06]}  Kf7 {[%clk 0:00:02]} 49. Kf3 {[%clk 0:00:07]}  Ke6 {[%clk 0:00:02]} 50. Ke3 {[%clk 0:00:07]}  Bc7 {[%clk 0:00:02]} 51. h3 {[%clk 0:00:07]}  Kf5 {[%clk 0:00:01]} 52. Kd3 {[%clk 0:00:07]}  Bf4 {[%clk 0:00:02]} 53. Bb2 {[%clk 0:00:03]}  c1=Q {[%clk 0:00:03]} 54. Bxc1 {[%clk 0:00:04]}  Bxc1 {[%clk 0:00:03]} 55. Kd4 {[%clk 0:00:05]}  Kf4 {[%clk 0:00:04]} 0-1


[Site "https://www.chess.com"]

[Event "Titled Tuesday Blitz April 26 Late 2022"]
[White "Omariev, Maksim"]
[Black "Fishbein, Alexander"]
[WhiteFideId "4193423"]
[BlackFideId "2000377"]
[WhiteElo "2515"]
[BlackElo "2442"]
[Result "0-1"]
[Round "08"]
[TimeControl "180+1"]
[Date "2022.04.26"]
[WhiteClock "0:00:04"]
[BlackClock "0:00:09"]

1. g4 {[%clk 0:03:00]}  e5 {[%clk 0:02:49]} 2. Bg2 {[%clk 0:02:46]}  c6 {[%clk 0:02:45]} 3. d4 {[%clk 0:02:43]}  exd4 {[%clk 0:02:42]} 4. Qxd4 {[%clk 0:02:44]}  d5 {[%clk 0:02:40]} 5. Nc3 {[%clk 0:02:41]}  Nd7 {[%clk 0:02:39]} 6. Bf4 {[%clk 0:02:20]}  Qb6 {[%clk 0:02:28]} 7. Qxb6 {[%clk 0:02:00]}  axb6 {[%clk 0:02:26]} 8. e4 {[%clk 0:01:52]}  d4 {[%clk 0:02:26]} 9. Nce2 {[%clk 0:01:52]}  c5 {[%clk 0:02:23]} 10. e5 {[%clk 0:01:04]}  Ne7 {[%clk 0:02:18]} 11. Bg3 {[%clk 0:01:01]}  Nc6 {[%clk 0:02:14]} 12. f4 {[%clk 0:01:00]}  h5 {[%clk 0:02:06]} 13. h3 {[%clk 0:00:57]}  hxg4 {[%clk 0:02:06]} 14. hxg4 {[%clk 0:00:58]}  Rxh1 {[%clk 0:02:06]} 15. Bxh1 {[%clk 0:00:58]}  g5 {[%clk 0:02:03]} 16. Bxc6 {[%clk 0:00:51]}  bxc6 {[%clk 0:02:03]} 17. f5 {[%clk 0:00:46]}  Be7 {[%clk 0:01:40]} 18. Nf3 {[%clk 0:00:46]}  Bd8 {[%clk 0:01:30]} 19. Kd2 {[%clk 0:00:45]}  Nf8 {[%clk 0:01:14]} 20. c3 {[%clk 0:00:45]}  f6 {[%clk 0:00:54]} 21. e6 {[%clk 0:00:39]}  Nxe6 {[%clk 0:00:54]} 22. fxe6 {[%clk 0:00:37]}  Bxe6 {[%clk 0:00:55]} 23. cxd4 {[%clk 0:00:33]}  Bxg4 {[%clk 0:00:55]} 24. Ke3 {[%clk 0:00:22]}  Be7 {[%clk 0:00:50]} 25. a3 {[%clk 0:00:19]}  Kf7 {[%clk 0:00:49]} 26. Rh1 {[%clk 0:00:10]}  Kg7 {[%clk 0:00:48]} 27. Kf2 {[%clk 0:00:10]}  Re8 {[%clk 0:00:46]} 28. Bc7 {[%clk 0:00:07]}  cxd4 {[%clk 0:00:41]} 29. Bxb6 {[%clk 0:00:03]}  c5 {[%clk 0:00:38]} 30. b4 {[%clk 0:00:02]}  d3 {[%clk 0:00:36]} 31. Ng3 {[%clk 0:00:01]}  cxb4 {[%clk 0:00:34]} 32. a4 {[%clk 0:00:01]}  b3 {[%clk 0:00:29]} 33. a5 {[%clk 0:00:01]}  Bd6 {[%clk 0:00:21]} 34. Rb1 {[%clk 0:00:02]}  Be6 {[%clk 0:00:17]} 35. Ne4 {[%clk 0:00:02]}  Bf4 {[%clk 0:00:15]} 36. Nc5 {[%clk 0:00:01]}  Bd5 {[%clk 0:00:14]} 37. Nxb3 {[%clk 0:00:01]}  Re2+ {[%clk 0:00:14]} 38. Kf1 {[%clk 0:00:02]}  Bxf3 {[%clk 0:00:14]} 39. Nd4 {[%clk 0:00:02]}  Bg2+ {[%clk 0:00:14]} 40. Kg1 {[%clk 0:00:03]}  Be3+ {[%clk 0:00:14]} 41. Kh2 {[%clk 0:00:02]}  Bf4+ {[%clk 0:00:13]} 42. Kg1 {[%clk 0:00:02]}  Be3+ {[%clk 0:00:12]} 43. Kh2 {[%clk 0:00:03]}  Bxd4 {[%clk 0:00:13]} 44. Bxd4 {[%clk 0:00:04]}  Be4+ {[%clk 0:00:13]} 45. Kg3 {[%clk 0:00:03]}  d2 {[%clk 0:00:12]} 46. a6 {[%clk 0:00:03]}  Bxb1 {[%clk 0:00:11]} 47. a7 {[%clk 0:00:02]}  Be4 {[%clk 0:00:11]} 48. a8=Q {[%clk 0:00:02]}  Bxa8 {[%clk 0:00:11]} 49. Bxf6+ {[%clk 0:00:03]}  Kxf6 {[%clk 0:00:10]} 50. Kh3 {[%clk 0:00:03]}  d1=Q {[%clk 0:00:10]} 51. Kg4 {[%clk 0:00:04]}  Qd4+ {[%clk 0:00:09]} 52. Kh5 {[%clk 0:00:04]}  Qh4# {[%clk 0:00:09]} 0-1


[Site "https://www.chess.com"]

[Event "Titled Tuesday Blitz April 26 Late 2022"]
[White "Onslow, Alfie"]
[Black "Gutierrez Olivares, Daniel"]
[WhiteFideId "436976"]
[BlackFideId "2264005"]
[WhiteElo "1884"]
[BlackElo "2317"]
[Result "1-0"]
[Round "08"]
[TimeControl "180+1"]
[Date "2022.04.26"]
[WhiteClock "0:01:53"]
[BlackClock "0:00:34"]

1. Nf3 {[%clk 0:03:00]}  Nf6 {[%clk 0:02:55]} 2. c4 {[%clk 0:03:01]}  e6 {[%clk 0:02:56]} 3. g3 {[%clk 0:03:00]}  d5 {[%clk 0:02:57]} 4. Bg2 {[%clk 0:03:00]}  c6 {[%clk 0:02:57]} 5. O-O {[%clk 0:03:01]}  Nbd7 {[%clk 0:02:58]} 6. b3 {[%clk 0:03:01]}  Bd6 {[%clk 0:02:58]} 7. Bb2 {[%clk 0:03:02]}  a5 {[%clk 0:02:59]} 8. Nc3 {[%clk 0:02:51]}  O-O {[%clk 0:02:56]} 9. d3 {[%clk 0:02:49]}  Re8 {[%clk 0:02:54]} 10. e4 {[%clk 0:02:49]}  dxc4 {[%clk 0:02:36]} 11. dxc4 {[%clk 0:02:46]}  Bc5 {[%clk 0:02:29]} 12. e5 {[%clk 0:02:38]}  Ng4 {[%clk 0:02:28]} 13. Ne4 {[%clk 0:02:38]}  Qc7 {[%clk 0:02:24]} 14. Nxc5 {[%clk 0:02:22]}  Nxc5 {[%clk 0:02:25]} 15. Ba3 {[%clk 0:02:22]}  Rd8 {[%clk 0:02:03]} 16. Qe2 {[%clk 0:02:20]}  Qb6 {[%clk 0:01:58]} 17. h3 {[%clk 0:02:15]}  Nh6 {[%clk 0:01:54]} 18. Rfd1 {[%clk 0:02:13]}  Bd7 {[%clk 0:01:47]} 19. Qe3 {[%clk 0:02:12]}  Na4 {[%clk 0:00:44]} 20. bxa4 {[%clk 0:02:10]}  Qxe3 {[%clk 0:00:43]} 21. fxe3 {[%clk 0:02:11]}  Nf5 {[%clk 0:00:43]} 22. Kf2 {[%clk 0:02:11]}  h5 {[%clk 0:00:42]} 23. g4 {[%clk 0:02:10]}  hxg4 {[%clk 0:00:42]} 24. hxg4 {[%clk 0:02:11]}  Nh6 {[%clk 0:00:43]} 25. Kg3 {[%clk 0:02:11]}  f5 {[%clk 0:00:40]} 26. Be7 {[%clk 0:02:08]}  Re8 {[%clk 0:00:39]} 27. Rxd7 {[%clk 0:02:08]}  fxg4 {[%clk 0:00:37]} 28. Nh4 {[%clk 0:02:04]}  Rxe7 {[%clk 0:00:33]} 29. Rxe7 {[%clk 0:02:03]}  g5 {[%clk 0:00:33]} 30. Rxe6 {[%clk 0:01:57]}  gxh4+ {[%clk 0:00:33]} 31. Kxh4 {[%clk 0:01:57]}  Nf5+ {[%clk 0:00:33]} 32. Kxg4 {[%clk 0:01:56]}  Ng7 {[%clk 0:00:34]} 33. Re7 {[%clk 0:01:53]} 1-0


[Site "https://www.chess.com"]

[Event "Titled Tuesday Blitz April 26 Late 2022"]
[White "Oro, Luis"]
[Black "Romero Ruscalleda, Josep"]
[WhiteFideId "104094"]
[BlackFideId "2231859"]
[WhiteElo "2385"]
[BlackElo "2318"]
[Result "0-1"]
[Round "08"]
[TimeControl "180+1"]
[Date "2022.04.26"]
[WhiteClock "0:00:15"]
[BlackClock "0:00:48"]

1. e4 {[%clk 0:03:00]}  g6 {[%clk 0:02:57]} 2. d4 {[%clk 0:03:00]}  Bg7 {[%clk 0:02:57]} 3. Nc3 {[%clk 0:03:00]}  d6 {[%clk 0:02:57]} 4. f4 {[%clk 0:03:00]}  a6 {[%clk 0:02:56]} 5. Nf3 {[%clk 0:02:59]}  b5 {[%clk 0:02:55]} 6. Bd3 {[%clk 0:02:59]}  Nd7 {[%clk 0:02:54]} 7. Be3 {[%clk 0:02:59]}  Bb7 {[%clk 0:02:51]} 8. O-O {[%clk 0:02:58]}  c5 {[%clk 0:02:49]} 9. Re1 {[%clk 0:02:49]}  Ngf6 {[%clk 0:02:42]} 10. e5 {[%clk 0:02:47]}  Ng4 {[%clk 0:02:36]} 11. Be4 {[%clk 0:02:19]}  Nxe3 {[%clk 0:02:28]} 12. Rxe3 {[%clk 0:02:19]}  Bxe4 {[%clk 0:02:23]} 13. Nxe4 {[%clk 0:02:14]}  cxd4 {[%clk 0:02:23]} 14. Qxd4 {[%clk 0:02:03]}  dxe5 {[%clk 0:02:21]} 15. fxe5 {[%clk 0:02:00]}  Nxe5 {[%clk 0:02:15]} 16. Qb4 {[%clk 0:01:05]}  Nxf3+ {[%clk 0:02:10]} 17. Rxf3 {[%clk 0:01:05]}  Qd4+ {[%clk 0:02:01]} 18. Qxd4 {[%clk 0:01:05]}  Bxd4+ {[%clk 0:02:01]} 19. Kf1 {[%clk 0:01:05]}  Bxb2 {[%clk 0:02:00]} 20. Re1 {[%clk 0:01:04]}  O-O {[%clk 0:01:59]} 21. Nc5 {[%clk 0:01:00]}  Rfe8 {[%clk 0:01:47]} 22. Nd3 {[%clk 0:00:54]}  Bd4 {[%clk 0:01:39]} 23. Nf4 {[%clk 0:00:52]}  e5 {[%clk 0:01:36]} 24. Nd5 {[%clk 0:00:51]}  Re6 {[%clk 0:01:33]} 25. Nc7 {[%clk 0:00:50]}  Rae8 {[%clk 0:01:28]} 26. Nxe8 {[%clk 0:00:49]}  Rxe8 {[%clk 0:01:28]} 27. Rd3 {[%clk 0:00:49]}  Rc8 {[%clk 0:01:26]} 28. Re2 {[%clk 0:00:45]}  Rc4 {[%clk 0:01:23]} 29. g4 {[%clk 0:00:31]}  f5 {[%clk 0:01:19]} 30. gxf5 {[%clk 0:00:31]}  gxf5 {[%clk 0:01:19]} 31. Rg2+ {[%clk 0:00:32]}  Kf7 {[%clk 0:01:18]} 32. Rdg3 {[%clk 0:00:32]}  e4 {[%clk 0:01:17]} 33. Rh3 {[%clk 0:00:33]}  Ke6 {[%clk 0:01:14]} 34. Rxh7 {[%clk 0:00:33]}  Ke5 {[%clk 0:01:14]} 35. Re7+ {[%clk 0:00:33]}  Kf4 {[%clk 0:01:14]} 36. Rh7 {[%clk 0:00:23]}  Ra4 {[%clk 0:01:13]} 37. Rh4+ {[%clk 0:00:23]}  Ke5 {[%clk 0:01:13]} 38. Rh8 {[%clk 0:00:17]}  Rxa2 {[%clk 0:01:10]} 39. Re8+ {[%clk 0:00:17]}  Kf4 {[%clk 0:01:11]} 40. h4 {[%clk 0:00:17]}  Kf3 {[%clk 0:01:03]} 41. Re2 {[%clk 0:00:17]}  Bc3 {[%clk 0:01:01]} 42. Rf2+ {[%clk 0:00:17]}  Kg3 {[%clk 0:00:58]} 43. h5 {[%clk 0:00:15]}  Ra1+ {[%clk 0:00:53]} 44. Ke2 {[%clk 0:00:15]}  Re1# {[%clk 0:00:48]} 0-1


[Site "https://www.chess.com"]

[Event "Titled Tuesday Blitz April 26 Late 2022"]
[White "Pakleza, Zbigniew"]
[Black "Hirneise, Jens"]
[WhiteFideId "1119290"]
[BlackFideId "24614734"]
[WhiteElo "2467"]
[BlackElo "2359"]
[Result "1-0"]
[Round "08"]
[TimeControl "180+1"]
[Date "2022.04.26"]
[WhiteClock "0:00:09"]
[BlackClock "0:00:19"]

1. d4 {[%clk 0:03:00]}  d5 {[%clk 0:02:12]} 2. Bf4 {[%clk 0:03:00]}  Nf6 {[%clk 0:02:10]} 3. e3 {[%clk 0:03:00]}  c5 {[%clk 0:02:10]} 4. c3 {[%clk 0:03:00]}  Nc6 {[%clk 0:02:10]} 5. Nd2 {[%clk 0:03:01]}  cxd4 {[%clk 0:02:10]} 6. cxd4 {[%clk 0:03:01]}  g6 {[%clk 0:02:09]} 7. Ngf3 {[%clk 0:03:01]}  Bg7 {[%clk 0:02:10]} 8. Bd3 {[%clk 0:03:01]}  O-O {[%clk 0:02:10]} 9. h3 {[%clk 0:03:02]}  Re8 {[%clk 0:02:08]} 10. O-O {[%clk 0:03:01]}  Nh5 {[%clk 0:02:07]} 11. Bh2 {[%clk 0:03:01]}  e5 {[%clk 0:02:07]} 12. dxe5 {[%clk 0:02:59]}  Nxe5 {[%clk 0:02:08]} 13. Nxe5 {[%clk 0:02:58]}  Bxe5 {[%clk 0:02:09]} 14. Bxe5 {[%clk 0:02:59]}  Rxe5 {[%clk 0:02:09]} 15. Nf3 {[%clk 0:02:58]}  Re8 {[%clk 0:02:07]} 16. Rc1 {[%clk 0:02:46]}  Qb6 {[%clk 0:02:06]} 17. Qd2 {[%clk 0:02:36]}  Nf6 {[%clk 0:02:05]} 18. Rfd1 {[%clk 0:02:30]}  Bd7 {[%clk 0:02:01]} 19. Nd4 {[%clk 0:02:23]}  h5 {[%clk 0:01:56]} 20. Rc2 {[%clk 0:01:57]}  Rac8 {[%clk 0:01:53]} 21. Rdc1 {[%clk 0:01:56]}  Rxc2 {[%clk 0:01:53]} 22. Rxc2 {[%clk 0:01:55]}  Rc8 {[%clk 0:01:53]} 23. Rxc8+ {[%clk 0:01:54]}  Bxc8 {[%clk 0:01:54]} 24. Qc3 {[%clk 0:01:52]}  Bd7 {[%clk 0:01:53]} 25. a3 {[%clk 0:01:49]}  a6 {[%clk 0:01:34]} 26. b4 {[%clk 0:01:46]}  Ba4 {[%clk 0:01:21]} 27. Ne2 {[%clk 0:01:25]}  Qc6 {[%clk 0:01:18]} 28. Qe5 {[%clk 0:01:16]}  Nd7 {[%clk 0:01:15]} 29. Qe8+ {[%clk 0:01:05]}  Nf8 {[%clk 0:01:13]} 30. Qd8 {[%clk 0:00:54]}  Kg7 {[%clk 0:01:10]} 31. Nf4 {[%clk 0:00:51]}  Bb3 {[%clk 0:01:05]} 32. Qg5 {[%clk 0:00:41]}  f6 {[%clk 0:00:45]} 33. Qg3 {[%clk 0:00:25]}  g5 {[%clk 0:00:38]} 34. Nxh5+ {[%clk 0:00:23]}  Kf7 {[%clk 0:00:35]} 35. h4 {[%clk 0:00:23]}  Ne6 {[%clk 0:00:31]} 36. hxg5 {[%clk 0:00:22]}  Nxg5 {[%clk 0:00:31]} 37. Nf4 {[%clk 0:00:21]}  Qc1+ {[%clk 0:00:29]} 38. Kh2 {[%clk 0:00:21]}  Qc8 {[%clk 0:00:30]} 39. Qh4 {[%clk 0:00:20]}  Qg8 {[%clk 0:00:24]} 40. Bf5 {[%clk 0:00:17]}  Ke7 {[%clk 0:00:23]} 41. Qh6 {[%clk 0:00:14]}  d4 {[%clk 0:00:20]} 42. exd4 {[%clk 0:00:12]}  Bf7 {[%clk 0:00:20]} 43. Qh4 {[%clk 0:00:09]}  Qb8 {[%clk 0:00:19]} 44. Qg3 {[%clk 0:00:08]}  Qd6 {[%clk 0:00:19]} 45. Ng6+ {[%clk 0:00:07]}  Bxg6 {[%clk 0:00:18]} 46. Qxd6+ {[%clk 0:00:07]}  Kxd6 {[%clk 0:00:19]} 47. Bxg6 {[%clk 0:00:08]}  Kd5 {[%clk 0:00:20]} 48. f4 {[%clk 0:00:07]}  Ne4 {[%clk 0:00:17]} 49. Bxe4+ {[%clk 0:00:06]}  Kxe4 {[%clk 0:00:18]} 50. Kg3 {[%clk 0:00:06]}  Kxd4 {[%clk 0:00:18]} 51. Kf3 {[%clk 0:00:06]}  Kc3 {[%clk 0:00:17]} 52. g4 {[%clk 0:00:07]}  Kb3 {[%clk 0:00:18]} 53. g5 {[%clk 0:00:07]}  fxg5 {[%clk 0:00:18]} 54. fxg5 {[%clk 0:00:08]}  Kxa3 {[%clk 0:00:19]} 55. g6 {[%clk 0:00:09]} 1-0


[Site "https://www.chess.com"]